Cogmind - Beta 13 @@@ ROGUE MODE // 2024.04.21 @ 19:04:59 Player: N00Bk1llr Result: Destroyed by P-80 Master with Gamma Rifle Performance ------------- Evolutions (9) 4500 Regions Visited (24) 4800 Robots Destroyed (179) 895 Value Destroyed (5353) 5353 Prototype IDs (48) 960 Alien Tech Used (0) 0 Bonus (10304) 10304 TOTAL SCORE: 26812 Bonus ------- High Alert Combat Kills 557 Follower Combat Kills 1706 Aligned with FarCom 300 Met Imprinter 300 Built Enhanced Grunts 300 Met R17 at Cetus 500 Met R17 at Research 2000 Met MAIN.C 5000 Friendly Fire -359 Cogmind --------- Core Integrity 0/1600 Matter 89/300 Energy 53/100 System Corruption 23% Temperature Hot (226) Movement Flying (45) Location -1/Command Parts ------- > --- POWER (3) -------- (None) > --- PROPULSION (9) --- Impulse Thruster Array > --- UTILITY (11) ----- (None) > --- WEAPON (2) ------- Power Sword > --- INVENTORY (5) ---- Advanced Reaction Control System Advanced System Restoration Module Enhanced Gauss Cannon Peak State ------------ > --- POWER ------------ Light Antimatter Reactor > --- PROPULSION ------- Improved VTOL Module Field Propulsion Drive Field Propulsion Array Field Propulsion Array Field Propulsion Array Experimental Q-thruster > --- UTILITY ---------- Advanced Power Amplifier Advanced Thermal Generator Advanced Heat Sink Large Storage Unit Advanced Gravity Neutralizer Enhanced Optical Array Advanced Reaction Control System Improved Utility Shielding Graphene Brace Hacking Suite Advanced Component Analysis Suite > --- WEAPON ----------- Smartbomb Launcher > --- INVENTORY -------- Xenon Bombardment Thruster Xenon Bombardment Thruster Xenon Bombardment Thruster Impulse Thruster Q-thruster Impulse Thruster Array Advanced Reaction Control System Advanced System Restoration Module Enhanced Gauss Cannon Long-range Missile Launcher Improved Plasma Cutter Power Sword [Rating: 149] Favorites ----------- Power Light Nuclear Core Engine Light Ion Engine Power Core Light Nuclear Core Reactor Light Antimatter Reactor Propulsion Light Treads Treads Light Treads Leg Aluminum Leg Wheel Wheel Flight Unit Improved VTOL Module Utility High-capacity Storage Unit Device Advanced Heat Sink Storage High-capacity Storage Unit Processor Experimental Targeting Computer Hackware Hacking Suite Protection Weapon Shielding Weapon Longsword +1 Energy Gun Improved Medium Laser Energy Cannon Heavy Particle Cannon Ballistic Gun Enhanced Autogun Ballistic Cannon Mass Driver Launcher Mini Grenade Launcher Special Weapon Improved Plasma Cutter Slashing Weapon Longsword +1 Build | -11 -10 -10 -9 -9 -9 -8 -8 -8 -7 -7 -7 -7 -6 -6 -5 -5 -5 -5 -5 -4 -3 -2 -1 -1 ------- Run | Yrd Mat Min Mat Min Exi Min Mat Sto Fac Low Low Zio Pro Fac Fac Ext Cet Arc Hub Fac Res Res Acc Com Slots Evolved 18 | . . . 2 . . . 2 . 2 . . . . 2 2 . . . . 2 2 2 2 . Power 2 | . . . . . . . . . . . . . . . . . . . . 1 1 . . . Propulsion 7 | . . . 1 . . . 2 . 2 . . . . . . . . . . 1 . . 1 . Utility 9 | . . . 1 . . . . . . . . . . 2 2 . . . . . 1 2 1 . Weapon . | . . . . . . . . . . . . . . . . . . . . . . . . . Parts Attached 236 | 4 13 . 15 . 2 1 14 28 10 4 2 15 1 10 10 25 9 2 6 8 18 7 16 16 Power 19 | 1 2 . 2 . . 1 1 2 1 1 . . . 1 1 . . . . 1 2 2 . 1 Engine 10 | 1 2 . 2 . . 1 1 . 1 . . . . . . . . . . . 1 1 . . Core 6 | . . . . . . . . 2 . 1 . . . 1 1 . . . . 1 . . . . Reactor 3 | . . . . . . . . . . . . . . . . . . . . . 1 1 . 1 Propulsion 63 | 1 3 . 5 . . . 5 16 3 . . 7 . 3 2 1 . . . 1 2 1 6 7 Treads 26 | 1 3 . 5 . . . 2 13 2 . . . . . . . . . . . . . . . Leg 3 | . . . . . . . 1 2 . . . . . . . . . . . . . . . . Wheel 1 | . . . . . . . . . 1 . . . . . . . . . . . . . . . Hover . | . . . . . . . . . . . . . . . . . . . . . . . . . Flight 33 | . . . . . . . 2 1 . . . 7 . 3 2 1 . . . 1 2 1 6 7 Utility 77 | . 3 . 3 . . . 1 3 3 . 1 2 1 3 7 8 4 . 4 5 13 4 8 4 Device 42 | . . . . . . . . 2 3 . . 1 . 1 3 3 3 . 4 4 10 2 3 3 Storage 6 | . 3 . . . . . . . . . . . . . 2 . . . . . . 1 . . Processor 10 | . . . 1 . . . . 1 . . 1 1 1 . 1 . . . . 1 2 . 1 . Hackware 1 | . . . . . . . . . . . . . . . . . . . . . . . 1 . Protection 18 | . . . 2 . . . 1 . . . . . . 2 1 5 1 . . . 1 1 3 1 Artifact . | . . . . . . . . . . . . . . . . . . . . . . . . . Weapon 77 | 2 5 . 5 . 2 . 7 7 3 3 1 6 . 3 . 16 5 2 2 1 1 . 2 4 Energy Gun 11 | 1 3 . 3 . 1 . . 3 . . . . . . . . . . . . . . . . Energy Cannon 1 | . . . . . . . . . . . . 1 . . . . . . . . . . . . Ballistic Gun 19 | 1 2 . 2 . . . 3 2 2 1 . 1 . 1 . 2 1 1 . . . . . . Ballistic Cannon 8 | . . . . . . . 2 . . . . 2 . . . . 1 . . 1 1 . . 1 Launcher 22 | . . . . . . . 2 . 1 2 1 1 . 1 . 9 2 . 1 . . . . 2 Special Weapon 6 | . . . . . . . . . . . . . . . . 4 1 . . . . . 1 . Impact Weapon . | . . . . . . . . . . . . . . . . . . . . . . . . . Slashing Weapon 10 | . . . . . 1 . . 2 . . . 1 . 1 . 1 . 1 1 . . . 1 1 Piercing Weapon . | . . . . . . . . . . . . . . . . . . . . . . . . . Special Melee Weapon . | . . . . . . . . . . . . . . . . . . . . . . . . . Unidentified Prototypes 18 | . . . 2 . . . 3 5 . . . 2 . . . . 3 . . 1 . . 2 . Parts Lost 70 | . 5 . 1 . . . 3 6 5 4 4 . . . . 2 . . . 1 1 . 9 29 Power 11 | . 1 . 1 . . . 1 1 1 1 . . . . . . . . . . 1 . 1 3 Propulsion 30 | . 2 . . . . . 2 4 3 2 2 . . . . . . . . . . . 3 12 Utility 20 | . . . . . . . . 1 . . 1 . . . . 2 . . . 1 . . 3 12 Weapon 9 | . 2 . . . . . . . 1 1 1 . . . . . . . . . . . 2 2 Highest Loss Streak 25 | . 3 . 1 . . . 2 2 2 4 3 . . . . 2 . . . 1 1 . 2 25 To Critical Strikes 1 | . 1 . . . . . . . . . . . . . . . . . . . . . . . Average Slot Usage (%) 76 | . 83 85 90 100 100 100 83 97 72 72 48 47 99 97 95 89 91 93 95 91 94 90 85 68 Engine 3 | . 13 14 10 11 11 11 7 3 2 1 . . . . . . . . . . 2 3 4 1 Core 4 | . . . . . . . . 5 4 5 7 7 7 5 5 5 5 5 5 10 6 4 4 1 Treads 15 | . 28 28 31 33 33 33 26 38 29 24 7 6 . . . . . . . . . . . . Flight 11 | . . . . . . . 1 . . . . 5 53 45 41 41 41 41 41 41 36 26 26 21 Device 5 | . . . . . . . . 3 2 7 . . . 5 18 13 13 11 15 12 21 24 21 18 Storage 7 | . 14 14 11 11 11 11 9 9 7 7 7 6 . . 4 5 5 5 5 5 4 4 4 3 Processor 9 | . . . 2 11 11 11 9 9 7 7 8 15 22 20 12 11 11 11 11 10 6 13 12 5 Protection 3 | . . . 12 11 11 11 9 4 . . . . . 4 3 3 5 5 5 5 3 1 4 4 Energy Gun 4 | . 13 14 14 11 9 11 3 8 7 1 . . . . . . . . . . . . . . Ballistic Gun 4 | . 13 14 7 11 11 11 11 8 6 6 . . 7 6 1 1 2 4 3 . . . . . Launcher 1 | . . . . . . . . . . 6 14 . . . . 2 1 . . . . . . . Slashing Weapon 1 | . . . . . 1 . . 1 . . . 2 . 5 5 . . 5 4 5 4 4 3 3 Naked Turns . | . . . . . . . . . . . . . . . . . . . . . . . . . Heaviest Build 69 | 6 49 45 53 50 50 50 53 56 50 53 52 52 13 21 36 40 40 40 41 42 65 66 69 66 Greatest Support 102 | 20 40 40 69 69 69 69 89 102 102 82 40 35 35 35 38 40 40 40 40 61 68 68 76 79 Greatest Overweight (x) 18 | . 1 1 1 . . . 1 . 1 . 2 2 . . 10 12 . . 1 13 2 . 18 9 Average Overweight (x) . | . . 1 . . . . . . . . 1 1 . . . . . . . . . . . . Largest Inventory Capacity 20 | 5 20 20 20 20 20 20 20 20 20 20 20 20 5 5 15 15 15 15 15 15 15 15 15 15 Average Capacity 17 | 5 16 20 20 20 20 20 20 20 20 20 20 19 5 5 13 15 15 15 15 15 15 15 15 14 Most Carried 20 | 4 7 5 20 20 20 20 20 20 20 20 17 20 5 5 15 15 15 15 15 15 15 15 14 15 Average Carried 15 | 2 4 5 16 19 19 20 19 19 19 16 16 18 5 4 11 12 14 14 13 14 14 14 12 11 Final Capacity 20 | 5 20 20 20 20 20 20 20 20 20 20 20 5 5 5 15 15 15 15 15 15 15 15 15 5 Final Carried 20 | 4 5 5 20 20 20 20 20 20 20 17 16 5 5 5 15 14 15 14 15 15 15 15 12 3 Class Distribution -------------------- 56% | Mutant 19% | Scavenger-Mutant 11% | Sprinter 10% | Scavenger-Sprinter Dominant Class ---------------- Mutant | -10/Materials Mutant | -10/Mines Mutant | -9/Materials Mutant | -9/Mines Mutant | -9/Exiles Mutant | -8/Mines Mutant | -8/Materials Scavenger-Mutant | -8/Storage Scavenger-Mutant | -7/Factory Scavenger-Mutant | -7/Lower Caves Mutant | -7/Lower Caves Mutant | -7/Zion Sprinter | -6/Proximity Caves Sprinter | -6/Factory Sprinter | -5/Factory Sprinter | -5/Extension Scavenger-Sprinter | -5/Cetus Scavenger-Sprinter | -5/Archives Scavenger-Mutant | -5/Hub_04(d) Sprinter | -4/Factory Scavenger-Assassin | -3/Research Scavenger-Sprinter | -2/Research Scavenger-Sprinter | -1/Access Scavenger-Sprinter | -1/Command Resources | -11 -10 -10 -9 -9 -9 -8 -8 -8 -7 -7 -7 -7 -6 -6 -5 -5 -5 -5 -5 -4 -3 -2 -1 -1 ----------- Run | Yrd Mat Min Mat Min Exi Min Mat Sto Fac Low Low Zio Pro Fac Fac Ext Cet Arc Hub Fac Res Res Acc Com Matter Collected 4742 | 240 215 . 191 65 20 75 207 814 247 94 128 61 66 190 124 997 234 72 128 40 228 115 60 131 Remotely . | . . . . . . . . . . . . . . . . . . . . . . . . . Salvage Created 7367 | . 592 . 852 140 . 251 478 1406 717 122 161 . . 142 234 781 . 273 470 87 71 422 . 168 Parts 359 | . 36 . 56 14 . 8 28 58 47 5 4 . . 5 14 20 . 10 15 2 10 16 . 11 Haulers Intercepted 17 | . 2 . 2 . . . 2 . . . . . . 1 2 1 . . 4 1 . 2 . . Recyclers Shooed 6 | . 2 . . . . 1 1 . . . . . . . . 2 . . . . . . . . Parts Field Recycled . | . . . . . . . . . . . . . . . . . . . . . . . . . Retrieved Matter . | . . . . . . . . . . . . . . . . . . . . . . . . . Parts Self-Destructed 9 | . . . . . . . . . . 3 6 . . . . . . . . . . . . . Prevented 5 | . . . . . . . . . . . 5 . . . . . . . . . . . . . Kills | -11 -10 -10 -9 -9 -9 -8 -8 -8 -7 -7 -7 -7 -6 -6 -5 -5 -5 -5 -5 -4 -3 -2 -1 -1 ------- Run | Yrd Mat Min Mat Min Exi Min Mat Sto Fac Low Low Zio Pro Fac Fac Ext Cet Arc Hub Fac Res Res Acc Com Combat Hostiles Destroyed 97 | . 12 . 4 3 . 4 8 24 10 4 8 . . . . 12 . 3 . . . . . 5 Guns 66 | . 12 . 4 3 . 4 5 24 7 1 2 . . . . 1 . 3 . . . . . . Cannons 5 | . . . . . . . 1 . . . . . . . . . . . . . . . . 4 AOE 26 | . . . . . . . 2 . 3 3 6 . . . . 11 . . . . . . . 1 Classes Destroyed 18 | . 5 . 3 1 . 1 1 3 2 1 . . . . . 1 . . . . . . . . Worker 16 | . 1 . 3 . . . . 3 5 . . . . . . 1 . . . . . 1 . 2 Builder 15 | . . . 3 . . . 2 . 4 . . . . 1 . 3 . . . . 1 1 . . Tunneler 4 | . . . . 1 . 1 . . 1 . . . . . . . . . . . 1 . . . Hauler 17 | . 2 . 2 . . . 2 . . . . . . 1 2 1 . . 4 1 . 2 . . Recycler 15 | . . . 6 1 . . 1 1 2 . . . . . . 3 . . . . . 1 . . Minesweeper 1 | . . . . . . . . . . 1 . . . . . . . . . . . . . . Mechanic 1 | . . . . . . . . . 1 . . . . . . . . . . . . . . . Operator 3 | . . . 1 . . . . . . . . . . 1 1 . . . . . . . . . Drone 1 | . . . . . . . . 1 . . . . . . . . . . . . . . . . Watcher 9 | . 2 . . . . . 1 1 . . . . . . 1 1 . . 1 . 1 1 . . Swarmer 20 | . 3 . . 3 . . 4 . . . 6 . . . . . . . . . . . . 4 Grunt 47 | . 9 . 4 . . 3 3 16 6 4 1 . . . . 1 . . . . . . . . Brawler 2 | . . . . . . . . 2 . . . . . . . . . . . . . . . . Duelist 1 | . . . . . . . . 1 . . . . . . . . . . . . . . . . Sentry 15 | . . . . . . . 1 5 2 . 1 . . . . 3 . 3 . . . . . . Hunter 5 | . . . . . . 1 . . 1 . . . . . . 3 . . . . . . . . Programmer 2 | . . . . . . . . . 1 . . . . . . . . . . . . . . 1 Behemoth 1 | . . . . . . . . . . . . . . . . 1 . . . . . . . . Thug 1 | . . . . . . . . . . . . . . . . 1 . . . . . . . . Savage 1 | . . . . . . . . . . . . . . . . 1 . . . . . . . . Butcher 1 | . . . . . . . . . . . . . . . . 1 . . . . . . . . Guerrilla 2 | . . . . . . . . . . . . . . . . 2 . . . . . . . . Best Kill Streak 14 | . 4 . 5 3 . 2 7 5 14 4 6 . . 1 2 6 . 3 2 1 2 4 . 5 Combat Bots Only 6 | . 4 . 3 3 . 2 3 5 4 4 6 . . . . 6 . 3 . . . . . 4 Max Kills in Single Turn 6 | . 1 . 1 1 . 1 3 1 6 2 2 . . 1 1 3 . 1 1 1 1 1 . 1 Gunslinging . | . . . . . . . . . . . . . . . . . . . . . . . . . Exploded 2 | . . . . . . . 1 . 1 2 2 . . . . 2 . . . . . . . 1 Melee . | . . . . . . . . . . . . . . . . . . . . . . . . . Uniques/NPCs Destroyed . | . . . . . . . . . . . . . . . . . . . . . . . . . Combat | -11 -10 -10 -9 -9 -9 -8 -8 -8 -7 -7 -7 -7 -6 -6 -5 -5 -5 -5 -5 -4 -3 -2 -1 -1 -------- Run | Yrd Mat Min Mat Min Exi Min Mat Sto Fac Low Low Zio Pro Fac Fac Ext Cet Arc Hub Fac Res Res Acc Com Hostile Shots Fired 923 | . 93 . 24 11 . 27 60 124 131 16 34 . 29 8 5 34 6 4 9 6 18 . 128 156 Missed 354 | . 20 . 5 2 . 7 28 37 48 3 11 . 15 6 1 14 3 3 3 3 8 . 80 57 Damage Taken 10807 | . 760 . 262 76 . 285 414 1442 836 228 364 . 253 67 71 302 148 25 61 61 283 . 1416 3453 Core 2301 | . 133 . 23 . . 8 46 151 102 19 34 . 22 12 13 44 15 25 . 23 30 . 140 1461 Absorbed by Shields 99 | . . . . . . . . . . . . . . . . 70 29 . . . . . . . Redirected to Shielding 292 | . . . 16 3 . 32 4 34 . . . . . . . . . . . . . . 29 174 Regen/Repaired (Parts) 125 | . . . . . . . . . . . . . . 38 . . . . . 87 . . . . Core Remaining (%) 85 | 100 . 46 . . . 92 . 64 . . . . 74 98 . . . . 90 98 97 100 . . Volleys Fired 453 | . 57 . 41 7 . 15 31 103 37 7 12 7 . 4 . 60 13 13 14 1 3 5 . 23 Largest 2 | . 2 . 2 2 . 2 2 2 2 2 2 1 . 1 . 2 1 1 1 1 1 1 . 1 Hottest 101 | . 70 . 101 79 . 79 100 86 97 86 66 28 . 30 . 88 57 35 46 57 57 57 . 57 Shots Fired 742 | . 111 . 78 14 . 30 59 199 74 10 20 7 . 4 . 64 13 13 14 1 3 5 . 23 Gun 623 | . 111 . 78 14 . 30 47 199 70 5 9 7 . 4 . 23 . 13 13 . . . . . Cannon 41 | . . . . . . . 10 . . . . . . . . . 8 . . 1 3 5 . 14 Launcher 78 | . . . . . . . 2 . 4 5 11 . . . . 41 5 . 1 . . . . 9 Special . | . . . . . . . . . . . . . . . . . . . . . . . . . Kinetic 394 | . 56 . 30 7 . 15 46 105 33 2 9 7 . 4 . 23 8 13 13 1 3 5 . 14 Thermal 260 | . 55 . 38 7 . 15 11 94 37 3 . . . . . . . . . . . . . . Explosive 78 | . . . . . . . 2 . 4 5 11 . . . . 41 5 . 1 . . . . 9 Electromagnetic 10 | . . . 10 . . . . . . . . . . . . . . . . . . . . . Robot Hit Streak 26 | . 15 . 13 12 . 5 14 22 14 15 6 . . . . 26 5 11 3 . 1 1 . 5 Robot Miss Streak 8 | . 4 . 8 2 . 1 6 3 2 . 2 . . . . 3 5 2 1 . 2 3 . 2 Penetration Max 1 | . . . . . . . . . . . . . . . . 1 1 . 1 . . . . . Secondary Targets 7 | . 1 . . . . 1 2 2 1 . . . . . . . . . . . . . . . Max Gunslinging Chain 1 | . 1 . . . . 1 1 1 1 . . . . . . . . . . . . . . . Shots Hit Robots 508 | . 69 . 54 8 . 22 37 141 59 5 11 . . 6 6 18 5 11 19 1 7 17 . 12 Core Hits 358 | . 33 . 25 5 . 11 27 54 40 12 13 . . 3 4 72 15 6 11 1 3 4 . 19 Critical Kills 4 | . . . . . . . . . . . . . . . . 1 . 3 . . . . . . Critical Parts Destroyed . | . . . . . . . . . . . . . . . . . . . . . . . . . Critical Strikes 24 | . 4 . 3 . . . . 6 4 . . . . . . 1 1 3 1 . . . . 1 Burn 17 | . 4 . 3 . . . . 6 4 . . . . . . . . . . . . . . . Destroy 4 | . . . . . . . . . . . . . . . . 1 . 3 . . . . . . Blast 2 | . . . . . . . . . . . . . . . . . 1 . . . . . . 1 Sever 1 | . . . . . . . . . . . . . . . . . . . 1 . . . . . Melee Attacks 243 | . . . . . . . . 7 . . . 45 . 43 8 2 . 1 12 16 11 25 42 31 Impact . | . . . . . . . . . . . . . . . . . . . . . . . . . Slashing 243 | . . . . . . . . 7 . . . 45 . 43 8 2 . 1 12 16 11 25 42 31 Piercing . | . . . . . . . . . . . . . . . . . . . . . . . . . Sneak Attacks 18 | . . . . . . . . . . . . . . 2 2 . . . 3 1 2 6 . 2 Combat Hostiles . | . . . . . . . . . . . . . . . . . . . . . . . . . Follow-up Attacks . | . . . . . . . . . . . . . . . . . . . . . . . . . Damage Inflicted 18346 | . 803 . 896 132 . 337 848 2599 1815 677 753 . . 396 449 3714 657 287 1234 76 473 1215 . 985 Guns 7329 | . 800 . 846 132 . 337 517 2599 1077 95 103 . . . . 253 . 287 283 . . . . . Cannons 774 | . . . . . . . 178 . . . . . . . . . 143 . . . 70 61 . 322 Explosions 6689 | . . . 50 . . . 153 . 723 489 645 . . . . 3461 514 . 196 . . . . 458 Melee 3438 | . . . . . . . . . . . . . . 396 449 . . . 755 76 403 1154 . 205 Ramming 116 | . 3 . . . . . . . 15 93 5 . . . . . . . . . . . . . Kinetic 4716 | . 364 . 345 44 . 183 597 1179 447 35 103 . . . . 253 143 287 283 . 70 61 . 322 Thermal 3309 | . 436 . 423 88 . 154 98 1420 630 60 . . . . . . . . . . . . . . Explosive 6639 | . . . . . . . 153 . 723 489 645 . . . . 3461 514 . 196 . . . . 458 Electromagnetic 128 | . . . 128 . . . . . . . . . . . . . . . . . . . . . Impact . | . . . . . . . . . . . . . . . . . . . . . . . . . Slashing 3438 | . . . . . . . . . . . . . . 396 449 . . . 755 76 403 1154 . 205 Piercing . | . . . . . . . . . . . . . . . . . . . . . . . . . Highest Corruption 23 | . 1 1 . . . . . 3 3 3 3 3 . . . . . . . . . . 1 23 Average Corruption 2 | . 1 1 . . . . . 3 1 3 3 3 . . . . . . . . . . 1 2 Corruption Purged 1 | . . . . . . . . . . . . . . . . . . . . . . . 1 . Corruption Blocked 1 | . . . . . . . . . . . . . . 1 . . . . . . . . . . Effects 47 | . 5 2 . . . . . 1 7 11 8 7 . . . . . . . . . . 1 5 Message Errors 12 | . 3 1 . . . . . . 2 3 1 1 . . . . . . . . . . . 1 Matter Fused 12 | . . . . . . . . 1 1 3 1 2 . . . . . . . . . . 1 3 Heat Flow Errors 9 | . 1 1 . . . . . . 1 2 2 1 . . . . . . . . . . . 1 Energy Discharges 2 | . . . . . . . . . 1 . 1 . . . . . . . . . . . . . Parts Fused 1 | . . . . . . . . . . 1 . . . . . . . . . . . . . . Data Loss (minor) 4 | . . . . . . . . . . 1 2 1 . . . . . . . . . . . . Data Loss (major) 5 | . . . . . . . . . 1 1 1 2 . . . . . . . . . . . . Alerts 1 | . . . . . . . . . 1 . . . . . . . . . . . . . . . Weapon Failures 1 | . 1 . . . . . . . . . . . . . . . . . . . . . . . Overload Shots . | . . . . . . . . . . . . . . . . . . . . . . . . . Overflow Damage 740 | . . . . . . . . . 19 21 95 . . 63 . 79 . . 140 . 85 198 . 40 Projectiles 8 | . . . . . . . . . . . . . . . . . . . . . 8 . . . Explosions 211 | . . . . . . . . . 19 18 95 . . . . 79 . . . . . . . . Melee 521 | . . . . . . . . . . 3 . . . 63 . . . . 140 . 77 198 . 40 Knockbacks 6 | . . . . . . . 3 . . . . . . . . . . . . . . . . 3 Impact . | . . . . . . . . . . . . . . . . . . . . . . . . . Kinetic 6 | . . . . . . . 3 . . . . . . . . . . . . . . . . 3 Secondary . | . . . . . . . . . . . . . . . . . . . . . . . . . Self-Inflicted Damage 159 | . . . 25 . . . . . . . 65 . . . . 11 58 . . . . . . . Shots 5 | . . . 1 . . . . . . . 2 . . . . 1 1 . . . . . . . Rammed 25 | . 1 . . . . . . . 1 21 2 . . . . . . . . . . . . . Targets Rammed 27 | . 1 . . . . . . . 1 23 2 . . . . . . . . . . . . . Kicked . | . . . . . . . . . . . . . . . . . . . . . . . . . Crushed 2 | . . . . . . . . . . 2 . . . . . . . . . . . . . . Highest Temperature 379 | . 204 240 232 45 . 180 92 379 184 135 230 200 315 119 334 90 14 . 10 325 379 . 107 34 Average Temperature 73 | . 49 124 44 18 . 73 40 126 68 59 84 142 94 28 114 30 7 . 6 92 114 . 18 7 Received Heat Transfer 2069 | . 318 . 93 . . 81 144 648 252 153 63 . 9 9 . 53 9 . 18 21 63 . 18 117 Effects 14 | . . . . . . . . 9 . . . . 1 . 2 . . . . . 2 . . . Shutdowns 3 | . . . . . . . . 1 . . . . 1 . . . . . . . 1 . . . Energy Bleed 5 | . . . . . . . . 3 . . . . . . 1 . . . . . 1 . . . Interference 4 | . . . . . . . . 4 . . . . . . . . . . . . . . . . Matter Decay 1 | . . . . . . . . 1 . . . . . . . . . . . . . . . . Short Circuit 1 | . . . . . . . . . . . . . . . 1 . . . . . . . . . Siege Activations . | . . . . . . . . . . . . . . . . . . . . . . . . . Robots Corrupted . | . . . . . . . . . . . . . . . . . . . . . . . . . Combat Hostiles . | . . . . . . . . . . . . . . . . . . . . . . . . . Parts Fried . | . . . . . . . . . . . . . . . . . . . . . . . . . Impact Corruptions 3 | . 1 . . . . . . . . 2 . . . . . . . . . . . . . . Robots Melted . | . . . . . . . . . . . . . . . . . . . . . . . . . Combat Hostiles . | . . . . . . . . . . . . . . . . . . . . . . . . . Parts Melted 10 | . 6 . . 1 . . . 2 1 . . . . . . . . . . . . . . . Heat Transferred 7960 | . 1472 . 1123 185 . 333 222 3071 1443 111 . . . . . . . . . . . . . . Parts Sabotaged . | . . . . . . . . . . . . . . . . . . . . . . . . . Parts Stolen . | . . . . . . . . . . . . . . . . . . . . . . . . . Parts Stripped . | . . . . . . . . . . . . . . . . . . . . . . . . . Power Chain Reactions 2 | . . . 2 . . . . . . . . . . . . . . . . . . . . . Alert | -11 -10 -10 -9 -9 -9 -8 -8 -8 -7 -7 -7 -7 -6 -6 -5 -5 -5 -5 -5 -4 -3 -2 -1 -1 ------- Run | Yrd Mat Min Mat Min Exi Min Mat Sto Fac Low Low Zio Pro Fac Fac Ext Cet Arc Hub Fac Res Res Acc Com Peak Influence 1654 | . 166 21 281 185 . 75 271 435 436 . . . . 473 627 1210 1184 702 893 713 456 336 1639 1654 Initial 988 | . . 21 7 101 . . 29 114 146 . . . . 132 175 306 677 472 245 421 369 193 201 988 Average 366 | . 80 21 163 116 . 16 157 261 250 . . . . 240 422 793 982 633 479 469 403 261 767 1314 Maximum Alert Level 5 | . . . 1 . . . 1 2 2 . . . . 2 2 4 4 3 3 3 2 1 5 5 Low Security (%) 37 | 100 100 100 57 100 . 100 48 22 28 . . . . 29 9 . . . . . . 6 . . Level 1 32 | . . . 42 . . . 51 72 60 . . . . 64 22 13 . . 38 . 39 93 32 . Level 2 13 | . . . . . . . . 5 10 . . . . 6 67 25 4 43 41 98 60 . 20 . Level 3 8 | . . . . . . . . . . . . . . . . 36 59 56 19 1 . . 22 24 Level 4 7 | . . . . . . . . . . . . . . . . 24 35 . . . . . 22 69 Level 5 . | . . . . . . . . . . . . . . . . . . . . . . . 2 6 High Security . | . . . . . . . . . . . . . . . . . . . . . . . . . Max Security . | . . . . . . . . . . . . . . . . . . . . . . . . . Squads Dispatched 58 | . 3 . 3 . . . . 4 4 . . . 1 10 1 1 2 . 6 4 5 2 9 3 Investigation 23 | . 1 . . . . . . 1 2 . . . . 5 1 . 2 . 1 2 1 . 5 2 Extermination 3 | . . . . . . . . . 1 . . . . . . . . . . . . . 1 1 Reinforcement 27 | . 2 . 3 . . . . 3 1 . . . . 4 . 1 . . 5 1 4 2 1 . Assault 5 | . . . . . . . . . . . . . 1 1 . . . . . 1 . . 2 . Garrison . | . . . . . . . . . . . . . . . . . . . . . . . . . Intercept . | . . . . . . . . . . . . . . . . . . . . . . . . . Searches Triggered 1 | . . . . . . . . . . . . . . . . . . . . . . . 1 . Construction Impeded 6 | . . . 1 . . . . 1 1 . . . . 1 . 1 . . 1 . . . . . Haulers Reinforced 4 | . . . . . . . . . . . . . . . . . . . 1 . 2 1 . . Active Scanning Responses . | . . . . . . . . . . . . . . . . . . . . . . . . . Cargo Convoy Interrupts . | . . . . . . . . . . . . . . . . . . . . . . . . . Stealth | -11 -10 -10 -9 -9 -9 -8 -8 -8 -7 -7 -7 -7 -6 -6 -5 -5 -5 -5 -5 -4 -3 -2 -1 -1 --------- Run | Yrd Mat Min Mat Min Exi Min Mat Sto Fac Low Low Zio Pro Fac Fac Ext Cet Arc Hub Fac Res Res Acc Com Distress Signals 27 | . . . 3 . . . 1 7 . . . . . . . 2 2 . 4 . 3 . 4 1 Communications Jammed 13 | . . . . . . . . . . . . . . . . . . . 2 . 6 . 5 . Distress Signals 13 | . . . . . . . . . . . . . . . . . . . 2 . 6 . 5 . Times Spotted 339 | . 20 . 18 4 . 7 13 33 13 4 7 . 27 10 10 15 17 4 10 4 7 6 72 38 Peak Tracking Total 20 | . 5 . 3 3 . 3 5 7 4 3 4 . 13 4 5 4 7 2 7 4 2 2 20 11 Tactical Retreats 43 | . . . 1 . . . 1 1 1 . . . 6 1 2 2 . . 3 . . 1 17 7 Traps | -11 -10 -10 -9 -9 -9 -8 -8 -8 -7 -7 -7 -7 -6 -6 -5 -5 -5 -5 -5 -4 -3 -2 -1 -1 ------- Run | Yrd Mat Min Mat Min Exi Min Mat Sto Fac Low Low Zio Pro Fac Fac Ext Cet Arc Hub Fac Res Res Acc Com Traps Triggered 17 | . 1 . . . . . . 2 1 . . . . 1 1 7 . . . . 3 . 1 . Indirectly . | . . . . . . . . . . . . . . . . . . . . . . . . . Trap Hack Attempts . | . . . . . . . . . . . . . . . . . . . . . . . . . Triggered . | . . . . . . . . . . . . . . . . . . . . . . . . . Disarmed . | . . . . . . . . . . . . . . . . . . . . . . . . . Reprogrammed . | . . . . . . . . . . . . . . . . . . . . . . . . . Reused . | . . . . . . . . . . . . . . . . . . . . . . . . . Traps Extracted . | . . . . . . . . . . . . . . . . . . . . . . . . . Installed . | . . . . . . . . . . . . . . . . . . . . . . . . . Triggered 2 | . . . . . . . . . . . 2 . . . . . . . . . . . . . Machines | -11 -10 -10 -9 -9 -9 -8 -8 -8 -7 -7 -7 -7 -6 -6 -5 -5 -5 -5 -5 -4 -3 -2 -1 -1 ---------- Run | Yrd Mat Min Mat Min Exi Min Mat Sto Fac Low Low Zio Pro Fac Fac Ext Cet Arc Hub Fac Res Res Acc Com Machines Disabled 24 | . . . 1 . . 1 . 7 1 . . . . 1 . 8 1 2 1 1 . . . . Max in Single Turn 2 | . . . 1 . . 1 . 1 1 . . . . 1 . 2 . 1 1 1 . . . . Garrison Access 8 | . . . . . . . . . . . . . . 1 1 . . . 1 2 . . 3 . Machines Repaired . | . . . . . . . . . . . . . . . . . . . . . . . . . Machines Dismantled 6 | . . . . . . . . . . . . . . . . 4 1 . . . . . 1 . Machines Sabotaged . | . . . . . . . . . . . . . . . . . . . . . . . . . Overloaded Fab Kills . | . . . . . . . . . . . . . . . . . . . . . . . . . Hacking | -11 -10 -10 -9 -9 -9 -8 -8 -8 -7 -7 -7 -7 -6 -6 -5 -5 -5 -5 -5 -4 -3 -2 -1 -1 --------- Run | Yrd Mat Min Mat Min Exi Min Mat Sto Fac Low Low Zio Pro Fac Fac Ext Cet Arc Hub Fac Res Res Acc Com Machines Accessed 73 | . 2 . 6 . 1 . . 4 6 . . 1 . 8 5 10 3 1 4 5 2 2 11 2 Terminals 47 | . 2 . 6 . . . . 3 2 . . . . 3 3 10 3 . 3 . 2 2 6 2 Fabricators 5 | . . . . . . . . . 2 . . . . 1 1 . . . . 1 . . . . Repair Stations 5 | . . . . . . . . 1 . . . . . 1 . . . . . 1 . . 2 . Recycling Units 3 | . . . . . . . . . . . . . . 2 . . . . . 1 . . . . Scanalyzers 2 | . . . . . . . . . 2 . . . . . . . . . . . . . . . Garrison Access 8 | . . . . . . . . . . . . . . 1 1 . . . 1 2 . . 3 . Total Hacks 156 | . 10 . 12 . 1 . . 6 16 . . 4 . 15 10 18 7 5 11 8 6 2 22 3 Successful 71 | . 3 . 5 . 1 . . 3 8 . . 4 . 4 4 9 2 5 6 4 2 1 9 1 Failed 84 | . 6 . 7 . . . . 3 8 . . . . 11 6 9 5 . 5 4 4 1 13 2 Catastrophic 26 | . 1 . 2 . . . . 1 5 . . . . 4 3 1 2 . . 2 . 1 2 2 Database Lockouts 1 | . 1 . . . . . . . . . . . . . . . . . . . . . . . Manual 48 | . 7 . 4 . 1 . . . 5 . . 2 . 6 3 . 2 . 2 2 4 1 9 . Terminals 103 | . 10 . 12 . . . . 5 6 . . . . 6 6 18 7 . 9 . 6 2 13 3 Fabricators 7 | . . . . . . . . . 3 . . . . 1 1 . . . . 2 . . . . Repair Stations 10 | . . . . . . . . 1 . . . . . 3 . . . . . 2 . . 4 . Recycling Units 4 | . . . . . . . . . . . . . . 3 . . . . . 1 . . . . Scanalyzers 7 | . . . . . . . . . 7 . . . . . . . . . . . . . . . Garrison Access 15 | . . . . . . . . . . . . . . 2 3 . . . 2 3 . . 5 . Terminal Hacks 49 | . 3 . 5 . 1 . . 3 1 . . 4 . . 3 9 2 5 5 . 2 1 4 1 Record 8 | . . . . . . . . . . . . . . . 1 . 2 5 . . . . . . Part Schematic 4 | . . . . . . . . . . . . 4 . . . . . . . . . . . . Robot Analysis 1 | . 1 . . . . . . . . . . . . . . . . . . . . . . . Prototype ID Bank 4 | . 1 . 1 . . . . . . . . . . . . . . . 1 . 1 . . . Open Door 14 | . . . . . . . . 2 . . . . . . . 8 . . . . . . 3 1 Open DSF 1 | . . . . . . . . . . . . . . . . . . . . . . 1 . . Branch Access Points 3 | . . . . . . . . . 1 . . . . . 1 . . . 1 . . . . . Alert Level 1 | . . . . . . . . . . . . . . . . . . . 1 . . . . . Locate Traps 8 | . . . 3 . . . . 1 . . . . . . 1 1 . . 1 . . . 1 . Hauler Manifests 4 | . 1 . 1 . . . . . . . . . . . . . . . 1 . 1 . . . Derelict Proto ID Bank 1 | . . . . . 1 . . . . . . . . . . . . . . . . . . . Fabricator Hacks 2 | . . . . . . . . . 2 . . . . . . . . . . . . . . . Load Schematic 1 | . . . . . . . . . 1 . . . . . . . . . . . . . . . Build 1 | . . . . . . . . . 1 . . . . . . . . . . . . . . . Repair Station Hacks 6 | . . . . . . . . . . . . . . 2 . . . . . 2 . . 2 . Scan Component 4 | . . . . . . . . . . . . . . 1 . . . . . 1 . . 2 . Repair 2 | . . . . . . . . . . . . . . 1 . . . . . 1 . . . . Recycling Unit Hacks . | . . . . . . . . . . . . . . . . . . . . . . . . . Scanalyzer 4 | . . . . . . . . . 4 . . . . . . . . . . . . . . . Insert Component 2 | . . . . . . . . . 2 . . . . . . . . . . . . . . . Analyze 2 | . . . . . . . . . 2 . . . . . . . . . . . . . . . Garrison Access Hacks 2 | . . . . . . . . . . . . . . . . . . . 1 1 . . . . Seal Access 2 | . . . . . . . . . . . . . . . . . . . 1 1 . . . . Unauthorized Hacks 8 | . . . . . . . . . 1 . . . . 2 1 . . . . 1 . . 3 . Terminals 2 | . . . . . . . . . 1 . . . . . . . . . . . . . 1 . Assimilate 1 | . . . . . . . . . 1 . . . . . . . . . . . . . . . Botnet 1 | . . . . . . . . . . . . . . . . . . . . . . . 1 . Fabricators . | . . . . . . . . . . . . . . . . . . . . . . . . . Repair Stations . | . . . . . . . . . . . . . . . . . . . . . . . . . Recycling Units 3 | . . . . . . . . . . . . . . 2 . . . . . 1 . . . . Tunnel 3 | . . . . . . . . . . . . . . 2 . . . . . 1 . . . . Scanalyzers . | . . . . . . . . . . . . . . . . . . . . . . . . . Garrison Access 3 | . . . . . . . . . . . . . . . 1 . . . . . . . 2 . Jam 3 | . . . . . . . . . . . . . . . 1 . . . . . . . 2 . Data Cores Recovered 1 | . . . . . . . . . . . . . . . 1 . . . . . . . . . Used . | . . . . . . . . . . . . . . . . . . . . . . . . . Hacking Detections 54 | . 2 . 6 . . . . 3 6 . . . . 6 5 6 2 . 3 2 2 1 9 1 Full Trace Events 13 | . 1 . . . . . . . 2 . . . . 3 . . 2 . 1 1 . . 2 1 Feedback Events 3 | . 1 . . . . . . . 1 . . . . 1 . . . . . . . . . . Corruption 3 | . 1 . . . . . . . 1 . . . . 1 . . . . . . . . . . Feedback Blocked . | . . . . . . . . . . . . . . . . . . . . . . . . . Robot Schematics Acquired 3 | . . . . . . . . . . . . 3 . . . . . . . . . . . . Robots Built . | . . . . . . . . . . . . . . . . . . . . . . . . . Authchips . | . . . . . . . . . . . . . . . . . . . . . . . . . Time . | . . . . . . . . . . . . . . . . . . . . . . . . . Total Robot Build Rating . | . . . . . . . . . . . . . . . . . . . . . . . . . Part Schematics Acquired 20 | . . . . . . . . . 1 . . 19 . . . . . . . . . . . . Parts Built 1 | . . . . . . . . . 1 . . . . . . . . . . . . . . . Authchips . | . . . . . . . . . . . . . . . . . . . . . . . . . Time 116 | . . . . . . . . . 116 . . . . . . . . . . . . . . . Total Part Build Rating 3 | . . . . . . . . . 3 . . . . . . . . . . . . . . . Parts Repaired 2 | . . . . . . . . . . . . . . 1 . . . . . 1 . . . . Time 80 | . . . . . . . . . . . . . . 30 . . . . . 50 . . . . Parts Recycled . | . . . . . . . . . . . . . . . . . . . . . . . . . Recycled Matter . | . . . . . . . . . . . . . . . . . . . . . . . . . Retrieved Matter . | . . . . . . . . . . . . . . . . . . . . . . . . . Retrieved Components . | . . . . . . . . . . . . . . . . . . . . . . . . . Parts Scanalyzed 1 | . . . . . . . . . 1 . . . . . . . . . . . . . . . Part Schematics Acquired 1 | . . . . . . . . . 1 . . . . . . . . . . . . . . . Parts Damaged 1 | . . . . . . . . . 1 . . . . . . . . . . . . . . . Bothacking | -11 -10 -10 -9 -9 -9 -8 -8 -8 -7 -7 -7 -7 -6 -6 -5 -5 -5 -5 -5 -4 -3 -2 -1 -1 ------------ Run | Yrd Mat Min Mat Min Exi Min Mat Sto Fac Low Low Zio Pro Fac Fac Ext Cet Arc Hub Fac Res Res Acc Com Used RIF Installer . | . . . . . . . . . . . . . . . . . . . . . . . . . Robots Hacked . | . . . . . . . . . . . . . . . . . . . . . . . . . Non-combat . | . . . . . . . . . . . . . . . . . . . . . . . . . Combat . | . . . . . . . . . . . . . . . . . . . . . . . . . Robot Hacks Applied . | . . . . . . . . . . . . . . . . . . . . . . . . . Relay Couplers Released 6 | . . . . . . . . . . . . . . 2 . . . . 1 1 . . 2 . Machine Destruction 6 | . . . . . . . . . . . . . . 2 . . . . 1 1 . . 2 . Fabnet Peak Effective % . | . . . . . . . . . . . . . . . . . . . . . . . . . Robots Rewired 4 | . . . . . . . . . . . . . . . . 4 . . . . . . . . Allies Hacked . | . . . . . . . . . . . . . . . . . . . . . . . . . Hacks Repelled . | . . . . . . . . . . . . . . . . . . . . . . . . . Allies | -11 -10 -10 -9 -9 -9 -8 -8 -8 -7 -7 -7 -7 -6 -6 -5 -5 -5 -5 -5 -4 -3 -2 -1 -1 -------- Run | Yrd Mat Min Mat Min Exi Min Mat Sto Fac Low Low Zio Pro Fac Fac Ext Cet Arc Hub Fac Res Res Acc Com Total Allies 31 | . . 2 . . . . . . . . . 2 . . 1 21 5 . . . . . . . Largest Group 11 | . . 2 2 1 . . . . . . . 2 . . 1 9 11 4 4 . . . . . Highest-Rated Group 588 | . . 52 52 31 . . . . . . . 192 . . 26 386 588 384 384 . . . . . Highest-Rated Ally 159 | . . 31 31 31 . . . . . . . 96 . . 26 159 153 96 96 . . . . . Total Orders 24 | . . . . . . . . 1 . . . . . 4 5 1 2 . 2 1 1 3 4 . EXPLORE 2 | . . . . . . . . 1 . . . . . . . . . . . . . . 1 . RETURN 22 | . . . . . . . . . . . . . . 4 5 1 2 . 2 1 1 3 3 . Ally Attacks 303 | . . . 32 2 . . . . . . . . . . . 78 125 20 46 . . . . . Total Damage 8645 | . . . 527 42 . . . . . . . . . . . 1708 3258 675 2435 . . . . . Kills 57 | . . . 14 1 . . . . . . . . . . . 11 17 1 13 . . . . . Allies Corrupted 1 | . . . . . . . . . . . . . . . . 1 . . . . . . . . Allies Melted 1 | . . . . . . . . . . . . . . . . . . . 1 . . . . . Intel | -11 -10 -10 -9 -9 -9 -8 -8 -8 -7 -7 -7 -7 -6 -6 -5 -5 -5 -5 -5 -4 -3 -2 -1 -1 ------- Run | Yrd Mat Min Mat Min Exi Min Mat Sto Fac Low Low Zio Pro Fac Fac Ext Cet Arc Hub Fac Res Res Acc Com Robot Analysis Total 1 | . 1 . . . . . . . . . . . . . . . . . . . . . . . Derelict Logs Recovered 7 | . . . . 2 . . . . . 3 . . 2 . . . . . . . . . . . Drone Launches 43 | . . . . . . . . 20 . . . . . 4 5 1 2 . 2 1 1 3 4 . Drone Recoveries 26 | . . . . . . . . 4 . . . . . 4 5 1 2 . 2 1 1 3 3 . Exploration | -11 -10 -10 -9 -9 -9 -8 -8 -8 -7 -7 -7 -7 -6 -6 -5 -5 -5 -5 -5 -4 -3 -2 -1 -1 ------------- Run | Yrd Mat Min Mat Min Exi Min Mat Sto Fac Low Low Zio Pro Fac Fac Ext Cet Arc Hub Fac Res Res Acc Com Turns Passed 14145 | 63 1111 96 926 175 442 545 354 908 884 600 867 3216 210 384 274 776 234 97 326 186 341 240 531 359 Spaces Moved 13097 | 36 441 41 438 95 273 312 153 349 388 347 268 1105 832 865 687 1169 570 194 556 551 550 624 1508 745 Core 42 | 5 . . . . . . . . . . . . . . 3 1 . . . 1 12 . 8 12 Treads 4089 | 31 441 41 438 95 273 312 153 349 388 347 268 953 . . . . . . . . . . . . Legs . | . . . . . . . . . . . . . . . . . . . . . . . . . Wheels . | . . . . . . . . . . . . . . . . . . . . . . . . . Hover . | . . . . . . . . . . . . . . . . . . . . . . . . . Flight 8966 | . . . . . . . . . . . . 152 832 865 684 1168 570 194 556 550 538 624 1500 733 Fastest Speed 17 | 50 160 240 160 160 160 160 160 157 155 155 240 18 18 18 18 20 20 20 20 17 17 23 20 21 Average Speed 83 | 144 206 240 169 160 160 160 165 159 164 155 310 279 22 25 21 20 20 20 38 18 37 23 23 24 Slowest Speed 950 | 160 240 240 240 160 160 160 240 160 232 156 320 320 27 27 550 650 20 20 95 700 150 24 950 500 Overloaded Moves . | . . . . . . . . . . . . . . . . . . . . . . . . . Propulsion Burnouts . | . . . . . . . . . . . . . . . . . . . . . . . . . Robots Hopped 44 | . . . . . . . . . . . . . 3 2 6 15 . . 5 . 1 . 10 2 Cave-ins Triggered . | . . . . . . . . . . . . . . . . . . . . . . . . . Exploration Rate (%) 47 | 3 67 21 55 19 62 72 19 64 13 53 56 86 90 34 20 82 95 98 40 18 15 16 61 32 Regions Visited 24 Branch Regions 14 Pre-discovered Areas 6 | . . . . . . . . . . . . 1 2 2 . . . . . 1 . . . . Known Exits Taken 5 | . . . . . . . . . 1 . . . . . 1 . . . . . 1 1 1 . Unknown Exits Taken 19 | 1 1 1 1 1 1 1 1 1 . 1 1 1 1 1 . 1 1 1 1 1 . . . . Scrap Searched 6 | . . . . . . 1 . . . . 1 3 1 . . . . . . . . . . . Spaces Dug 165 | . . . . . . . . 4 . . 15 11 . 36 2 . 2 1 1 15 5 7 42 24 Terrain Destroyed 956 | . . . 2 . . . 15 4 25 10 70 11 . 36 2 480 105 1 21 15 7 9 42 101 Melee 145 | . . . . . . . . 4 . . . 11 . 35 2 . . 1 1 14 5 7 42 23 Projectile 23 | . . . . . . . . . . . . . . 1 . . 5 . 5 1 2 2 . 7 AOE 788 | . . . 2 . . . 15 . 25 10 70 . . . . 480 100 . 15 . . . . 71 Terrain Rammed . | . . . . . . . . . . . . . . . . . . . . . . . . . Walls Destroyed . | . . . . . . . . . . . . . . . . . . . . . . . . . Machines Disabled . | . . . . . . . . . . . . . . . . . . . . . . . . . Actions | -11 -10 -10 -9 -9 -9 -8 -8 -8 -7 -7 -7 -7 -6 -6 -5 -5 -5 -5 -5 -4 -3 -2 -1 -1 --------- Run | Yrd Mat Min Mat Min Exi Min Mat Sto Fac Low Low Zio Pro Fac Fac Ext Cet Arc Hub Fac Res Res Acc Com Total 15268 | 47 535 40 557 105 279 330 208 535 576 386 283 1194 847 979 798 1588 670 237 637 622 668 687 1608 852 Wait 714 | . 11 . 1 . . . . 19 126 . . . 18 38 81 141 60 27 47 34 30 23 29 29 Move 12987 | 35 440 40 437 94 272 311 152 348 387 346 267 1104 825 860 674 1141 569 193 545 550 547 623 1487 740 Hop 41 | . . . . . . . . . . . . . 3 2 6 12 . . 5 . 1 . 10 2 Pick Up 122 | 8 11 . 37 2 1 1 2 3 7 1 . 5 . 7 10 5 . . 2 5 4 2 5 4 Fast Attach 80 | . 2 . 4 . 2 . 10 15 6 . 1 2 1 5 5 2 4 . 2 2 8 1 4 4 Attach 103 | 4 10 . 3 . . . 1 1 2 2 1 12 . 2 2 18 5 2 4 5 4 4 9 12 Detach 48 | . . . . . 1 . 1 . 1 . . 5 . . 1 15 8 1 3 3 1 . 5 3 Swap 53 | . 1 . 8 . . 1 3 12 2 2 . 1 . 3 3 5 . . . 1 6 2 3 . Drop 138 | . 2 . 26 2 3 2 8 20 7 2 . 13 . 10 8 6 3 . 3 5 9 2 4 3 Fire 453 | . 57 . 41 7 . 15 31 103 37 7 12 7 . 4 . 60 13 13 14 1 3 5 . 23 Melee 243 | . . . . . . . . 7 . . . 45 . 43 8 2 . 1 12 16 11 25 42 31 Ram . | . . . . . . . . . . . . . . . . . . . . . . . . . Kick . | . . . . . . . . . . . . . . . . . . . . . . . . . Crush 27 | . 1 . . . . . . . 1 23 2 . . . . . . . . . . . . . Escape Stasis 178 | . . . . . . . . . . . . . . 5 . 128 . . . . 44 . . 1 Rewire 22 | . . . . . . . . . . 3 . . . . . 19 . . . . . . . . Trap . | . . . . . . . . . . . . . . . . . . . . . . . . . Miscellaneous 59 | . . . . . . . . 7 . . . . . . . 34 8 . . . . . 10 . Route ------- -11/Scrapyard -10/Materials (discovered 2 exits: *Mat / [*Min]) -10/Mines -9/Materials (discovered 3 exits: [*Mat] / [*Min x2]) -9/Mines -9/Exiles -8/Mines -8/Materials -8/Storage -7/Factory (discovered 2 exits: *Low x2) -7/Lower Caves -7/Lower Caves -7/Zion -6/Proximity Caves -6/Factory (discovered 3 exits: *Fac / Low x2) -5/Factory (discovered 5 exits: *Fac / Upp x2 / *Ext x2) -5/Extension (discovered 2 exits: *Fac / *Cet) -5/Cetus (discovered 3 exits: *Fac x2 / *Arc) -5/Archives (discovered 3 exits: *Fac / *Hub x2) -5/Hub_04(d) -4/Factory -3/Research -2/Research (discovered 3 exits: *Acc x3) -1/Access -1/Command History --------- Turn | Location | Event 29 | -11/Scrapyard | Discovered new exit (range 16) 64 | -11/Scrapyard | Entered Materials 309 | -10/Materials | Discovered new exit (range 15) 314 | -10/Materials | Build established: Mutant 541 | -10/Materials | Lost 3 parts (1p1n1w) 693 | -10/Materials | Core integrity fell below 50% 716 | -10/Materials | Discovered new exit (range 6) 878 | -10/Materials | Central database locked down 1175 | -10/Materials | Entered Mines 1235 | -10/Mines | Discovered new exit (range 12) 1271 | -10/Mines | Entered Materials 1271 | -9/Materials | Accompanied by 2 allies 1271 | -9/Materials | Evolved 2 slots: Propulsion x1, Utility x1 1276 | -9/Materials | Led the pair of lost Derelicts to an unsafe place 1383 | -9/Materials | Discovered new exit (range 16) 1729 | -9/Materials | Discovered new exit (range 8) 2071 | -9/Materials | Discovered new exit (range 6) 2197 | -9/Materials | Entered Mines 2197 | -9/Mines | Accompanied by 1 ally 2271 | -9/Mines | Learned Materials emergency access door positions 2293 | -9/Mines | Learned Materials stockpile data 2365 | -9/Mines | Deemed a non-threat by the Exiles lab entrance 2365 | -9/Mines | Discovered new exit (range 5) 2372 | -9/Mines | Entered Exiles 2409 | -9/Exiles | Met 8R-AWN 2440 | -9/Exiles | Met EX-HEX 2489 | -9/Exiles | Met EX-BIN 2520 | -9/Exiles | Aligned with FarCom system 2521 | -9/Exiles | Given EX-Vault access code 2558 | -9/Exiles | Opened EX-Vault 2571 | -9/Exiles | Found Longsword +1 2657 | -9/Exiles | Warned to stay clear of 0b10 Research branches 2700 | -9/Exiles | Met EX-DEC 2794 | -9/Exiles | Discovered new exit (range 15) 2814 | -9/Exiles | Left Exiles lab with Longsword +1 2814 | -9/Exiles | Entered Mines 3348 | -8/Mines | Discovered new exit (range 7) 3359 | -8/Mines | Entered Materials 3359 | -8/Materials | Evolved 2 slots: Propulsion x2 3698 | -8/Materials | Discovered new exit (range 8) 3713 | -8/Materials | Entered Storage 3890 | -8/Storage | Build established: Scavenger-Mutant 4141 | -8/Storage | Found Prototype Processor 4141 | -8/Storage | Identified Exp. Targeting Computer 4332 | -8/Storage | Lost 9 allies 4615 | -8/Storage | Discovered new exit (range 5) 4621 | -8/Storage | Entered Factory 4621 | -7/Factory | Evolved 2 slots: Propulsion x2 4801 | -7/Factory | Identified exit to Lower Caves 5474 | -7/Factory | Fabricated Imp. VTOL Module (x1) 5505 | -7/Factory | Entered Lower Caves 5506 | -7/Lower Caves | Encountered a Warlord checkpoint 5518 | -7/Lower Caves | Learned Factory terminal intel 5691 | -7/Lower Caves | Lost 4 parts (1p2n1w) 5944 | -7/Lower Caves | Spotted B-75 Beast 6040 | -7/Lower Caves | Learned Factory stockpile data 6077 | -7/Lower Caves | Discovered new exit (range 10) 6105 | -7/Lower Caves | Entered another Lower Caves area 6194 | -7/Lower Caves | Attracted the attention of an 0b10 checkpoint 6234 | -7/Lower Caves | Lost 3 parts (1n1u1w) 6486 | -7/Lower Caves | Build established: Mutant 6950 | -7/Lower Caves | Discovered new exit (range 8) 6972 | -7/Lower Caves | Entered Zion 7025 | -7/Zion | Given A8's code to call for help 7226 | -7/Zion | Received a hallucinogenic algorithm 7245 | -7/Zion | Discovered new exit (range 10) 7357 | -7/Zion | System corruption cleaned by Quarantine Array 7772 | -7/Zion | Found Prototype Launcher 7772 | -7/Zion | Identified Rocket Array 7842 | -7/Zion | Given the Hacking Drone Bay 7849 | -7/Zion | Found Prototype Device 8613 | -7/Zion | Enhanced Grunt warped into view, answering call for help 8618 | -7/Zion | Enhanced Grunt warped into view, answering call for help 9489 | -7/Zion | Rebuked by Imprinter 10153 | -7/Zion | Identified Hacking Drone Bay 10188 | -7/Zion | Entered Proximity Caves 10338 | -6/Proximity Caves | Attracted the attention of an 0b10 outpost 10370 | -6/Proximity Caves | Spotted B-75 Beast 10397 | -6/Proximity Caves | Discovered new exit (range 5) 10398 | -6/Proximity Caves | Entered Factory 10398 | -6/Factory | Evolved 2 slots: Utility x2 10399 | -6/Factory | Identified exit to Lower Caves 10401 | -6/Factory | Loaded intel: 26 terminal locations 10450 | -6/Factory | Build established: Sprinter 10582 | -6/Factory | Repaired Imp. VTOL Module 10769 | -6/Factory | Discovered new exit (range 18) 10782 | -6/Factory | Entered another Factory area 10782 | -5/Factory | Evolved 2 slots: Utility x2 10930 | -5/Factory | Discovered new exit (range 12) 11004 | -5/Factory | Identified exit to Upper Caves 11004 | -5/Factory | Identified exit to Extension 11056 | -5/Factory | Entered Extension 11111 | -5/Extension | Rescued a captive Derelict 11112 | -5/Extension | Rescued a captive Derelict 11184 | -5/Extension | Rescued a captive Derelict 11265 | -5/Extension | Lost 3 allies 11298 | -5/Extension | Rescued A7 11319 | -5/Extension | Rescued a captive Derelict 11320 | -5/Extension | Rescued a captive Derelict 11324 | -5/Extension | Rescued a captive Derelict 11338 | -5/Extension | Spotted B-75 Beast 11353 | -5/Extension | Destroyed B-75 Beast 11359 | -5/Extension | Spotted B-75 Beast 11431 | -5/Extension | Disrupted transfer network 11522 | -5/Extension | Rescued a captive Derelict 11523 | -5/Extension | Rescued a captive Derelict 11531 | -5/Extension | Rescued a captive Derelict 11589 | -5/Extension | Rescued a captive Derelict 11590 | -5/Extension | Rescued a captive Derelict 11675 | -5/Extension | Rescued a captive Derelict 11676 | -5/Extension | Rescued a captive Derelict 11693 | -5/Extension | Rescued a captive Derelict 11694 | -5/Extension | Rescued a captive Derelict 11754 | -5/Extension | Rescued a captive Derelict 11759 | -5/Extension | Discovered new exit (range 10) 11759 | -5/Extension | Discovered new exit (range 6) 11832 | -5/Extension | Entered Cetus 11832 | -5/Cetus | Accompanied by 9 allies (A7) 11837 | -5/Cetus | Acquired a Cetus Manufacturing Module code from A7 11839 | -5/Cetus | Spotted Cetus Guard 11839 | -5/Cetus | Spotted Cetus Guard 11845 | -5/Cetus | Spotted Cetus Guard 11845 | -5/Cetus | Spotted Cetus Guard 11862 | -5/Cetus | Allies destroyed Cetus Guard 11864 | -5/Cetus | Allies destroyed Cetus Guard 11866 | -5/Cetus | Extracted ID and sensor layout for unrecognized location from A7's data core 11870 | -5/Cetus | Allies destroyed Cetus Guard 11878 | -5/Cetus | Discovered new exit (range 17) 11893 | -5/Cetus | Started Cetus Manufacturing Module 11918 | -5/Cetus | Manufactured an Enhanced Grunt 11943 | -5/Cetus | Manufactured an Enhanced Grunt 11968 | -5/Cetus | Manufactured an Enhanced Grunt 11973 | -5/Cetus | Discovered new exit (range 17) 11978 | -5/Cetus | Spotted Cetus Guard 11979 | -5/Cetus | Spotted Cetus Guard 11993 | -5/Cetus | Manufactured an Enhanced Grunt 12001 | -5/Cetus | Spotted Cetus Guard 12001 | -5/Cetus | Spotted Cetus Guard 12018 | -5/Cetus | Manufactured an Enhanced Grunt 12034 | -5/Cetus | Discovered new exit (range 18) 12036 | -5/Cetus | Met Revision 17 12057 | -5/Cetus | Lost 7 allies 12066 | -5/Cetus | Entered Archives 12066 | -5/Archives | Accompanied by 4 allies 12103 | -5/Archives | Unable to access archive contents 12110 | -5/Archives | Discovered new exit (range 16) 12111 | -5/Archives | Unable to access archive contents 12112 | -5/Archives | Discovered new exit (range 17) 12113 | -5/Archives | Unable to access archive contents 12114 | -5/Archives | Discovered new exit (range 14) 12115 | -5/Archives | Unable to access archive contents 12155 | -5/Archives | Build established: Scavenger-Sprinter 12163 | -5/Archives | Entered Hub_04(d) 12163 | -5/Hub_04(d) | Accompanied by 4 allies 12403 | -5/Hub_04(d) | Spotted B-75 Beast 12488 | -5/Hub_04(d) | Discovered new exit (range 7) 12489 | -5/Hub_04(d) | Entered Factory 12489 | -4/Factory | Evolved 2 slots: Power x1, Propulsion x1 12496 | -4/Factory | Found Prototype Processor 12512 | -4/Factory | Identified Exp. Signal Interpreter 12535 | -4/Factory | Spotted B-86 Titan 12597 | -4/Factory | Repaired Lrn. Missile Launcher 12675 | -4/Factory | Discovered new exit (range 4) 12675 | -4/Factory | Entered Research 12675 | -3/Research | Evolved 2 slots: Power x1, Utility x1 12875 | -3/Research | Revision forces began assault on 0b10 12994 | -3/Research | Met up with Revision 17++ 13004 | -3/Research | Discovered new exit (range 19) 13016 | -3/Research | Identified exit to Research 13016 | -3/Research | Entered another Research area 13016 | -2/Research | Evolved 2 slots: Utility x2 13024 | -2/Research | Identified exit to DSF 13209 | -2/Research | Identified exit to Access 13256 | -2/Research | Entered Access 13256 | -1/Access | Evolved 2 slots: Propulsion x1, Utility x1 13311 | -1/Access | Spotted B-99 Colossus 13392 | -1/Access | Spotted B-99 Colossus 13392 | -1/Access | Spotted B-99 Colossus 13428 | -1/Access | Spotted B-99 Colossus 13429 | -1/Access | Found Prototype Device 13429 | -1/Access | Identified Exp. Thermal Shield 13506 | -1/Access | First assault squad dispatched 13699 | -1/Access | Spotted B-99 Colossus 13756 | -1/Access | Search patrols dispatched 13781 | -1/Access | Discovered new exit (range 7) 13783 | -1/Access | Identified exit to Command 13787 | -1/Access | Entered Command 13794 | -1/Command | Spotted B-99 Colossus 13986 | -1/Command | Lost 4 parts (2p1n1u) 14079 | -1/Command | Spotted Executioner 14081 | -1/Command | Spotted Executioner 14085 | -1/Command | Spotted M Guard 14085 | -1/Command | Spotted M Guard 14085 | -1/Command | Spotted Combat Programmer 14085 | -1/Command | Spotted Combat Programmer 14110 | -1/Command | Met MAIN.C 14121 | -1/Command | Core integrity fell below 50% 14124 | -1/Command | System corruption reached 10% 14135 | -1/Command | 0b10 Conduit disabled 14141 | -1/Command | Core integrity fell below 20% 14146 | -1/Command | Destroyed by P-80 Master with Gamma Rifle Last Messages --------------- 14113_ System corrupted: Matter fused (-9). 14113_ Penetrated by EMDS Slug. 14118_ Impulse Thruster destroyed. 14118_ Field Propulsion Array destroyed. 14120_ Penetrated by EMDS Slug. 14123_ Lrn. Missile Launcher destroyed. 14125_ Penetrated by EMDS Slug. 14126_ Graphene Brace destroyed. 14127_ Penetrated by EMDS Slug. 14129_ System corrupted: Matter fused (-8). 14130_ Penetrated by EMDS Slug. 14130_ Hacking Suite destroyed. 14130_ Lrg. Storage Unit destroyed. 14133_ EMDS Slug penetrates Reinforced Barrier. 14135_ Penetrated by EMDS Slug. 14135_ 0b10 Conduit disabled. 14137_ Xenon Bombardment Thruster destroyed. 14143_ Penetrated by EMDS Slug. 14146_ System corrupted: Heat flow error (+225). Map ----- +----------------------------------------------------+ | ?????????????????????????????????????????????????? | | ?????????????????????????????????????????????????? | | ?????????????????????????????????????????????????? | | ?????????????????????????????????????????????????? | | ?????????????????????????????????????????????????? | | ?????????????????????????????????????????????????? | | ?????????????????????????????????????????????????? | | ?????????????????????????????????????????????????? | | ?????????????????????????????????????????????????? | | ?????????????????????????????????????????????????? | | ????????????????????????????????###############??? | | ???????????????????????????????" """" #??? | | ?????????????????????????????? "" #??? | | ?????????????????????????????? "" #### | | ?????????????????????????""""""""""" / | | ?????????????????????????" " """ / | | ?????????????????????????"" """"" / | | | ????????????????????????#"" """""" MMM #### | | ????????????????????????# " """""" MMM #??? | | ????????????????????????# " "" p MMM #??? | | ????????????????????????# " " p ""#??? | | ????????????????????????#""""""""" p """""""#??? | | ????????????????????????#"" """"""""#??? | | ????????????????????????# """"""""""#??? | | ????????????????????????# " " " " #??? | | ????????????????????????#@ " " " ?????? | | ????????????????????????" " " " """" "????? | | ????????????????????????" """ " " "???????? | | ????????????????????????" " " " ???????? | | ????????????????????????# """""""""" ???????? | | ????????????????????????# " """ " """????????? | | ????????????????????????# """ " "??????????? | | ????????????????????????###############??????????? | | ?????????????????????????????????????????????????? | | ?????????????????????????????????????????????????? | | ?????????????????????????????????????????????????? | | ?????????????????????????????????????????????????? | | ?????????????????????????????????????????????????? | | ?????????????????????????????????????????????????? | | ?????????????????????????????????????????????????? | | ?????????????????????????????????????????????????? | | ?????????????????????????????????????????????????? | | ?????????????????????????????????????????????????? | | ?????????????????????????????????????????????????? | | ?????????????????????????????????????????????????? | | ?????????????????????????????????????????????????? | | ?????????????????????????????????????????????????? | | ?????????????????????????????????????????????????? | | ?????????????????????????????????????????????????? | | ?????????????????????????????????????????????????? | +----------------------------------------------------+ Best States ------------- Heat Dissipation 71 Energy Generation 45 Energy Capacity 250 Matter Stores 300 Matter Capacity 300 Sight Range 22 Terrain Scan Density 10 Jamming Range 14 Cloak Strength 2 Power Amplification 30 Additional Mass Support 16 Corruption Block 7 Armor Coverage 375 Utility Shielding 66 Weapon Shielding 33 Evasion (%) 78 Targeting Accuracy 12 Armor Integrity Analysis 30 Recoil Reduction 5 Offensive Hacking 10 Item Schematics ----------------- Imp. VTOL Module | -7/Factory | Scanalyzed Adv. Assault Cannon | -7/Zion | Archive System Guard | -7/Zion | Archive Lgt. Fission Core | -7/Zion | Archive Xenon Bombardment Thruster | -7/Zion | Archive Adv. Sensor Array | -7/Zion | Archive Slug Cannon | -7/Zion | Archive Recoil Nullifier | -7/Zion | Archive Field Propulsion Drive | -7/Zion | Archive Imp. Shield Generator | -7/Zion | Archive Mak. Hover Unit | -7/Zion | Archive Gauss Cannon | -7/Zion | Archive Plasma Flamer | -7/Zion | Archive Mak. Sword | -7/Zion | Archive Focal Shield | -7/Zion | Archive Mak. System Shield | -7/Zion | Archive Beamcaster | -7/Zion | Free Riot Gun | -7/Zion | Free Battle Rifle | -7/Zion | Free Battle Cannon | -7/Zion | Free Robot Schematics ------------------ I-36 Angel | -7/Zion | Archive H-55 Commando | -7/Zion | Archive L-41 Fighter | -7/Zion | Archive Fabricated ------------ Imp. VTOL Module | x1 | -7/Factory Alien Tech Used ----------------- None Achievements -------------- Prison Break Project G-00 Revising The Future Revolutionary Research Challenges ------------ None Game ------ Seed FlakDeepScanner Manual? 0 Play Time 03:08:46 Cumulative 53.0 hours Start 2024.04.21 @ 15:34:47 End 2024.04.21 @ 19:04:59 Sessions 1 Manual Loads 0 Difficulty Rogue Special Mode None Game No. 87 Rogue 65 Adventurer 22 Explorer 0 Win Type - Total 1 Types 1/0/0/0/0/0/0/0/0 Lore% 32 Gallery% 48 Achievement% 44 Wizard Run 0 Options --------- Layout 2 ASCII 0 Keyboard 1 Movement Numpad Keybinds 0 Fullscreen 2 Font 24/Smallcaps Map View 50x44 Zoom Use 0% Tactical HUD 1 Map Filters NONE Filters NONE Steam 1 RUN: 407b135d-74ea-4ae2-bdca-a55a107a9ec8